bitfinex/quotes_BTCUSD_20230115
["timestamp","ask_amount","ask_price","bid_price","bid_amount"]
[1673806113967,0.481396,20773.0,20767.0,0.2]
[1673806114231,0.481396,20773.0,20767.0,0.481518]
[1673806114472,0.00378087,20774.0,20768.0,0.3]
[1673806114735,0.00378087,20774.0,20769.0,0.481482]
[1673806115023,0.00461527,20775.0,20769.0,0.481482]
[1673806115279,0.00461527,20775.0,20767.0,0.3391]
[1673806115280,0.00356478,20776.0,20770.0,1.0085]
[1673806115605,0.19429073,20776.0,20770.0,1.2]
[1673806115802,0.00356478,20776.0,20771.0,0.3]
[1673806116319,0.00356478,20776.0,20772.0,0.2]
[1673806116841,0.19429073,20776.0,20771.0,0.3]
[1673806117087,0.19072595,20775.0,20770.0,0.3]
[1673806117344,0.00356478,20776.0,20768.0,0.3]
[1673806117345,0.19072595,20774.0,20768.0,0.3]
[1673806117594,0.19072595,20774.0,20768.0,0.6157446]
[1673806117893,0.19072595,20774.0,20769.0,0.31357106]
[1673806118199,0.00356478,20776.0,20770.0,0.5]
[1673806118396,0.00356478,20776.0,20770.0,0.6699232]
[1673806118666,0.19429073,20776.0,20770.0,0.5]
[1673806118902,0.19429073,20776.0,20770.0,0.67002267]
[1673806119416,0.19072595,20775.0,20770.0,0.67002267]
[1673806119682,0.19072595,20774.0,20767.0,0.38244786]
[1673806119960,0.19072595,20773.0,20767.0,0.2]
[1673806120217,0.64452647,20776.0,20767.0,0.2]
[1673806120218,0.19072595,20772.0,20767.0,0.2]
[1673806120469,0.19072595,20771.0,20767.0,0.2]
[1673806120785,0.19072595,20771.0,20766.0,0.631549]
[1673806120993,0.16334,20774.0,20764.0,1.31941578]
[1673806120994,0.66792764,20770.0,20764.0,1.31941578]
[1673806121264,0.19072595,20769.0,20764.0,1.1759]
[1673806121501,0.19072595,20769.0,20762.0,1.496029]
[1673806121502,0.19072595,20768.0,20762.0,0.481629]
[1673806121757,0.19072595,20767.0,20762.0,0.481629]
[1673806122023,0.19072595,20766.0,20763.0,0.2]
[1673806122286,0.87370925,20772.0,20763.0,0.2]
[1673806122554,0.19072595,20771.0,20764.0,0.15917232]
[1673806122807,0.19072595,20771.0,20765.0,0.15917232]
[1673806123061,0.19072595,20771.0,20763.0,0.2]
[1673806123062,0.19072595,20771.0,20766.0,0.15917232]
[1673806123312,0.47720169,20772.0,20766.0,0.15917232]
[1673806123576,0.47720169,20772.0,20767.0,0.15917232]
[1673806123577,0.66792764,20772.0,20767.0,0.15917232]
[1673806123851,0.80702764,20771.0,20763.0,0.15917232]
[1673806124110,1.18915264,20770.0,20763.0,0.15917232]
[1673806124364,1.27885477,20769.0,20760.0,0.1632]
[1673806124627,0.71734272,20768.0,20760.0,0.1632]
[1673806124882,0.321225,20767.0,20760.0,0.1632]
[1673806125196,0.39611772,20768.0,20760.0,0.1632]
[1673806125449,0.19072595,20767.0,20761.0,0.15917232]
[1673806125701,0.19072595,20767.0,20762.0,0.15917232]
[1673806126159,0.16222,20770.0,20763.0,0.15917232]
[1673806126162,0.16222,20770.0,20762.0,0.64080632]
[1673806126413,0.35294595,20770.0,20764.0,0.15917232]
[1673806126969,0.521225,20769.0,20764.0,0.15917232]
[1673806127238,0.215222,20768.0,20764.0,0.15917232]
[1673806127493,0.87757272,20771.0,20764.0,0.15917232]
[1673806127494,0.47720169,20769.0,20764.0,0.15917232]
[1673806127761,0.00512171,20775.0,20765.0,0.15917232]
[1673806128018,0.47720169,20774.0,20766.0,1.03683604]
[1673806128270,0.47720169,20774.0,20767.0,0.15917232]
[1673806128579,0.47720169,20774.0,20768.0,0.15917232]
[1673806128580,0.47720169,20773.0,20768.0,0.15917232]
[1673806128785,0.48648171,20775.0,20767.0,0.3]
[1673806128786,0.47720169,20772.0,20769.0,0.15917232]
[1673806129060,0.47720169,20772.0,20768.0,0.15917232]
[1673806129308,0.48648171,20775.0,20769.0,0.15917232]
[1673806129567,0.00512171,20775.0,20770.0,0.15917232]
[1673806129845,0.00512171,20775.0,20771.0,0.15917232]
[1673806130085,0.00512171,20775.0,20772.0,0.15917232]
[1673806130371,0.00512171,20775.0,20773.0,0.15917232]
[1673806130629,0.00512171,20775.0,20773.0,0.64055032]
[1673806130884,0.00512171,20775.0,20774.0,0.2]
[1673806131170,0.00512171,20775.0,20774.0,0.98137]
[1673806131695,0.00226897,20777.0,20774.0,0.98137]
[1673806132195,0.19299492,20777.0,20773.0,0.481378]
[1673806132466,0.19072595,20776.0,20770.0,0.50517454]
[1673806132724,0.19072595,20775.0,20770.0,0.481445]
[1673806133000,0.19072595,20774.0,20770.0,0.481445]
[1673806133269,0.19072595,20773.0,20770.0,0.481445]
[1673806133522,0.16283897,20777.0,20770.0,0.681445]
[1673806133523,0.47947066,20777.0,20770.0,0.681445]
[1673806133829,0.67019661,20777.0,20771.0,0.65917232]
[1673806134088,0.00226897,20777.0,20772.0,1.12196832]
[1673806134373,0.00226897,20777.0,20773.0,0.45917232]
[1673806134631,0.00226897,20777.0,20774.0,1.12190432]
[1673806134879,0.00226897,20777.0,20775.0,0.5]
[1673806135178,0.00226897,20777.0,20775.0,0.481336]
[1673806136229,0.00226897,20777.0,20776.0,0.3]
[1673806136581,0.00226897,20777.0,20776.0,0.781324]
[1673806136837,0.00226897,20777.0,20776.0,0.981324]
[1673806137380,0.00226897,20777.0,20776.0,0.781324]
[1673806138676,0.00226897,20777.0,20776.0,0.981324]
[1673806138931,0.00226897,20777.0,20776.0,1.37375831]
[1673806139999,0.00470942,20778.0,20777.0,0.13582711]
[1673806140255,0.00470942,20778.0,20777.0,1.49111482]
[1673806140704,0.00470942,20778.0,20777.0,1.99111482]
[1673806141225,0.00470942,20778.0,20777.0,1.09842911]
[1673806143286,0.00470942,20778.0,20777.0,1.39842911]
[1673806144596,0.00113993,20778.0,20777.0,1.39842911]
[1673806144856,0.00113993,20778.0,20777.0,0.96449911]
[1673806145127,0.00113993,20778.0,20777.0,0.00189711]
[1673806146479,0.00113993,20778.0,20777.0,0.13082711]
[1673806146732,0.00113993,20778.0,20777.0,0.61212811]
[1673806147288,0.00113993,20778.0,20777.0,0.91212811]
[1673806148069,0.87206141,20784.0,20778.0,0.2]
[1673806148570,0.95836069,20784.0,20779.0,0.15917232]
[1673806148835,0.95836069,20784.0,20780.0,0.15917232]
[1673806149103,0.321225,20783.0,20780.0,0.15917232]
[1673806149356,0.95836069,20784.0,20780.0,0.15917232]
[1673806149881,0.00522269,20786.0,20781.0,0.15917232]
[1673806150148,0.00522269,20786.0,20782.0,0.64034632]
[1673806150689,0.47720169,20785.0,20777.0,0.481286]
[1673806150959,0.98915264,20784.0,20778.0,0.962532]
[1673806151210,0.19072595,20783.0,20778.0,0.962532]
[1673806151476,0.19072595,20782.0,20778.0,0.962532]
[1673806151731,0.19072595,20782.0,20778.0,0.481256]
[1673806151979,0.19072595,20782.0,20779.0,0.3]
[1673806152287,0.47720169,20784.0,20779.0,0.3]
[1673806152497,0.47720169,20784.0,20779.0,0.15917232]
[1673806152498,0.66792764,20784.0,20779.0,0.15917232]
[1673806153012,0.47720169,20784.0,20779.0,0.35917232]
[1673806153271,0.47720169,20784.0,20780.0,0.3]
[1673806153536,0.48632969,20786.0,20781.0,1.32158032]
[1673806153537,0.00522269,20786.0,20781.0,1.32158032]
[1673806153827,0.00522269,20786.0,20782.0,0.45917232]
[1673806154109,0.00522269,20786.0,20782.0,0.64035232]
[1673806154366,0.00522269,20786.0,20783.0,0.15917232]
[1673806154613,0.00522269,20786.0,20784.0,0.2]
[1673806154908,0.00522269,20786.0,20783.0,0.481147]
[1673806156429,0.00522269,20786.0,20784.0,0.15917232]
[1673806156431,0.00522269,20786.0,20784.0,0.3]
[1673806156700,0.00522269,20786.0,20785.0,0.962232]
[1673806156946,0.00522269,20786.0,20785.0,0.481116]
[1673806157458,0.641274,20792.0,20785.0,0.481116]
[1673806157459,0.00522319,20793.0,20785.0,0.64028832]
[1673806157725,0.5615527,20799.0,20785.0,0.64028832]
[1673806157726,0.14118078,20798.0,20791.0,0.1379]
[1673806158027,0.35300141,20800.0,20788.0,0.16065]
[1673806158028,0.47720169,20797.0,20793.0,1.442784]
[1673806158257,0.0001,20800.0,20793.0,1.442784]
[1673806158258,0.47720169,20798.0,20794.0,0.45917232]
[1673806158514,0.29955,20803.0,20795.0,0.48088]
[1673806158515,0.626454,20803.0,20795.0,0.48088]
[1673806158772,0.626454,20803.0,20794.0,0.64006132]
[1673806158773,0.480725,20802.0,20794.0,0.15917232]
[1673806159030,0.321225,20801.0,20794.0,0.15917232]
[1673806159292,1.43745793,20802.0,20794.0,0.64007232]
[1673806159543,0.619591,20804.0,20794.0,1.03558671]
[1673806159796,0.2,20803.0,20795.0,0.39551439]
[1673806160093,0.2,20803.0,20795.0,0.480869]
[1673806160094,0.321225,20802.0,20795.0,0.480869]
[1673806160318,0.47720169,20799.0,20792.0,0.2]
[1673806160604,0.47720169,20799.0,20789.0,1.10969593]
[1673806160605,0.1389,20795.0,20789.0,1.10969593]
[1673806160843,0.40594795,20794.0,20789.0,0.481013]
[1673806161100,0.19072595,20793.0,20789.0,0.481013]
[1673806161409,1.508571,20800.0,20789.0,0.481013]
[1673806161624,0.86792764,20799.0,20790.0,0.47789546]
[1673806161905,0.47720169,20798.0,20792.0,0.961878]
[1673806162156,0.47720169,20798.0,20793.0,0.45917232]
[1673806162421,0.680733,20802.0,20794.0,0.64007932]
[1673806162715,0.61610169,20798.0,20794.0,0.15917232]
[1673806162973,0.79842669,20797.0,20791.0,0.16073]
[1673806163233,0.79842669,20797.0,20790.0,0.80013703]
[1673806163234,0.88314964,20796.0,20790.0,0.64016032]
[1673806163492,1.00682764,20795.0,20786.0,0.481078]
[1673806163753,0.98915264,20794.0,20787.0,0.481061]
[1673806164070,0.98915264,20794.0,20786.0,0.481078]
[1673806164071,1.14885864,20794.0,20786.0,0.481078]
[1673806164329,0.66792764,20793.0,20786.0,0.481078]
[1673806164613,1.14886864,20793.0,20786.0,0.481078]
[1673806164867,1.14886864,20793.0,20785.0,0.00019065]
[1673806165123,0.66792764,20792.0,20786.0,0.15917232]
[1673806165377,0.19072595,20792.0,20787.0,1.12127632]
[1673806165643,0.47720169,20791.0,20785.0,0.48130265]
[1673806166169,0.19072595,20790.0,20785.0,0.64047497]
[1673806166443,0.19072595,20790.0,20785.0,0.48130265]
[1673806166698,0.19072595,20790.0,20785.0,0.64047497]
[1673806167218,0.19072595,20790.0,20786.0,0.3]
[1673806167484,0.47720169,20791.0,20786.0,1.14025732]
[1673806167755,0.47720169,20787.0,20780.0,0.14351578]
[1673806168318,0.321225,20786.0,20776.0,0.14351578]
[1673806168323,0.138,20781.0,20775.0,0.01636806]
[1673806168604,0.40113106,20784.0,20775.0,0.01636806]
[1673806168858,0.620109,20781.0,20775.0,0.01636806]
[1673806169115,0.98915264,20780.0,20775.0,0.01636806]
[1673806169378,1.84568164,20779.0,20775.0,0.01636806]
[1673806169642,0.1389,20776.0,20775.0,0.01636806]
[1673806169895,2.46602164,20776.0,20775.0,0.01636806]
[1673806170149,2.27529569,20776.0,20775.0,0.01636806]
[1673806170919,2.13639569,20776.0,20775.0,0.01636806]
[1673806172614,2.27449569,20776.0,20775.0,0.01636806]
[1673806173323,2.8663527,20776.0,20775.0,0.01636806]
[1673806173582,2.8663527,20776.0,20768.0,0.017946]
[1673806173583,0.0208553,20774.0,20768.0,0.017946]
[1673806173842,0.61610169,20769.0,20768.0,0.017946]
[1673806174099,2.13688169,20769.0,20768.0,0.017946]
[1673806174360,2.32760764,20769.0,20768.0,4.6e-05]
[1673806174661,2.46650764,20769.0,20768.0,4.6e-05]
[1673806174916,2.27578169,20769.0,20768.0,4.6e-05]
[1673806175189,2.27578169,20769.0,20768.0,0.15921832]
[1673806175190,1.65539569,20769.0,20768.0,0.15921832]
[1673806175449,1.79339569,20769.0,20766.0,0.01636806]
[1673806175705,0.79842669,20768.0,20766.0,0.01636806]
[1673806175989,1.65548969,20767.0,20766.0,0.01636806]
[1673806176247,0.215222,20767.0,20766.0,0.24199038]
[1673806176535,0.48148,20770.0,20766.0,0.10648753]
[1673806176796,0.48148,20770.0,20766.0,0.26565985]
[1673806177053,0.481454,20771.0,20766.0,0.26565985]
[1673806177317,0.481454,20771.0,20767.0,0.15917232]
[1673806177573,0.47720169,20770.0,20766.0,0.01636806]
[1673806177832,0.962982,20769.0,20766.0,0.17554038]
[1673806178094,0.481491,20769.0,20766.0,0.01636806]
[1673806178352,0.481467,20770.0,20766.0,0.01636806]
[1673806178658,0.481443,20771.0,20766.0,0.17554038]
[1673806178886,0.95864469,20771.0,20767.0,0.15917232]
[1673806179173,0.04021458,20774.0,20768.0,0.15917232]
[1673806179441,0.04021458,20774.0,20769.0,0.35917232]
[1673806179704,0.04021458,20774.0,20770.0,0.45917232]
[1673806180016,0.04021458,20774.0,20770.0,0.94061832]
[1673806180535,0.66792764,20773.0,20771.0,0.2]
[1673806180807,0.95861069,20773.0,20769.0,0.15917232]
[1673806181084,1.14933664,20773.0,20767.0,0.2]
[1673806181392,0.19072595,20772.0,20767.0,0.15917232]
[1673806181649,1.14937964,20771.0,20766.0,0.01636806]
[1673806181911,0.19072595,20770.0,20766.0,0.01636806]
[1673806182168,0.67219495,20770.0,20766.0,0.01636806]
[1673806182422,0.19072595,20770.0,20766.0,0.01636806]
[1673806182705,0.52160258,20774.0,20767.0,0.15917232]
[1673806182966,0.04021458,20774.0,20768.0,0.15917232]
[1673806183250,0.04021458,20774.0,20769.0,0.35917232]
[1673806183522,0.04021458,20774.0,20770.0,0.15917232]
[1673806183774,0.04021458,20774.0,20771.0,0.15917232]
[1673806184062,0.04021458,20774.0,20771.0,0.45917232]
[1673806184317,0.23094053,20774.0,20770.0,0.481461]
[1673806184580,0.19072595,20773.0,20767.0,0.481521]
[1673806184838,0.19072595,20772.0,20766.0,0.49790306]
[1673806185089,0.19072595,20771.0,20766.0,0.65707338]
[1673806185349,0.19072595,20771.0,20767.0,0.681521]
[1673806185874,0.99878927,20774.0,20767.0,0.681521]
[1673806186110,1.18951522,20774.0,20769.0,0.2]
[1673806186393,0.99878927,20774.0,20770.0,0.16417232]
[1673806187122,0.04021458,20774.0,20770.0,0.16417232]
[1673806187385,0.23094053,20774.0,20768.0,0.3]
[1673806187640,0.19072595,20773.0,20767.0,0.481511]
[1673806187909,0.19072595,20772.0,20767.0,0.481511]
[1673806188167,0.19072595,20772.0,20766.0,0.49792106]
[1673806188168,0.19072595,20771.0,20766.0,0.49792106]
[1673806188440,0.19072595,20770.0,20767.0,0.3]
[1673806189273,0.481419,20772.0,20767.0,0.3]
[1673806189534,0.476464,20770.0,20767.0,0.16417232]
[1673806189798,1.14439164,20770.0,20766.0,0.01636806]
[1673806190057,1.14439164,20770.0,20763.0,4.468494]
[1673806190058,1.14439164,20770.0,20765.0,0.2]
[1673806190329,0.95366569,20770.0,20765.0,0.2]
[1673806190608,0.66718995,20770.0,20765.0,0.36417232]
[1673806190866,0.19072595,20770.0,20765.0,1.14574432]
[1673806191132,0.04021458,20774.0,20766.0,0.16417232]
[1673806191391,0.04021458,20774.0,20768.0,0.963005]
[1673806191392,0.23094053,20774.0,20768.0,0.963005]
[1673806191642,0.04021458,20774.0,20769.0,0.16417232]
[1673806191911,0.04021458,20774.0,20770.0,0.16417232]
[1673806192974,0.66792764,20773.0,20765.0,0.02366947]
[1673806193229,0.67215595,20772.0,20766.0,0.481554]
[1673806193477,0.19072595,20771.0,20766.0,0.481554]
[1673806193753,0.19072595,20770.0,20766.0,0.481554]
[1673806194285,0.04021458,20774.0,20767.0,0.16417232]
[1673806194846,0.04021458,20774.0,20769.0,0.962968]
[1673806194848,0.23094053,20774.0,20769.0,0.962968]
[1673806195100,0.04021458,20774.0,20770.0,0.16417232]
[1673806195608,0.04021458,20774.0,20771.0,0.16417232]
[1673806196112,0.04021458,20774.0,20770.0,0.481457]
[1673806196370,0.23094053,20774.0,20770.0,0.481457]
[1673806196899,0.19072595,20773.0,20768.0,0.481495]
[1673806197150,0.19072595,20772.0,20766.0,0.481542]
[1673806197413,0.19072595,20771.0,20766.0,0.963097]
[1673806197678,0.19072595,20770.0,20766.0,0.963097]
[1673806198740,0.481421,20772.0,20766.0,0.963097]
[1673806199028,0.47720169,20773.0,20768.0,0.2]
[1673806199271,0.04021458,20774.0,20769.0,0.64564932]
[1673806199533,0.04021458,20774.0,20770.0,0.16417232]
[1673806200581,0.47720169,20773.0,20768.0,0.481494]
[1673806200833,0.19072595,20772.0,20767.0,0.481527]
[1673806201121,0.19072595,20771.0,20767.0,0.963039]
[1673806201357,0.19072595,20771.0,20767.0,0.962578]
[1673806202444,0.95860169,20773.0,20767.0,0.962578]
[1673806202659,1.14932764,20773.0,20768.0,0.16417232]
[1673806202920,0.95860169,20773.0,20768.0,0.16417232]
[1673806203173,1.14932764,20773.0,20768.0,0.16417232]
[1673806204483,0.321225,20772.0,20768.0,0.16417232]
[1673806204731,0.19072595,20772.0,20766.0,0.963093]
[1673806205018,0.19072595,20771.0,20766.0,1.12724532]
[1673806205247,1.43999769,20773.0,20766.0,0.963073]
[1673806205500,0.67214495,20772.0,20767.0,0.16417232]
[1673806206017,0.67214495,20772.0,20764.0,0.2]
[1673806206018,0.1389,20770.0,20764.0,0.2]
[1673806206307,0.1381,20768.0,20760.0,0.50038723]
[1673806206543,0.1381,20768.0,20761.0,0.14351578]
[1673806206544,1.3902837,20767.0,20761.0,0.14351578]
[1673806206810,1.63103406,20766.0,20761.0,0.14351578]
[1673806207067,1.47073664,20765.0,20760.0,0.01870223]
[1673806207329,0.66792764,20764.0,20760.0,0.01870223]
[1673806207635,0.98915264,20763.0,20760.0,0.01870223]
[1673806207847,0.215222,20762.0,20760.0,0.01870223]
[1673806208106,0.321225,20761.0,20760.0,0.01870223]
[1673806208362,0.47720169,20763.0,20760.0,0.01870223]
[1673806208624,0.47720169,20762.0,20760.0,0.01870223]
[1673806210267,1.81024,20767.0,20760.0,0.01870223]
[1673806210268,0.481519,20768.0,20760.0,1.02326937]
[1673806210450,0.47720169,20767.0,20761.0,0.16417232]
[1673806210704,0.47720169,20766.0,20762.0,0.16417232]
[1673806211262,0.47720169,20765.0,20760.0,0.01870223]
[1673806211532,1.47075664,20764.0,20760.0,0.01870223]
[1673806211774,1.65560869,20763.0,20760.0,0.01870223]
[1673806212049,0.321225,20762.0,20760.0,0.01870223]
[1673806212301,0.69242369,20761.0,20760.0,0.01870223]
[1673806212548,1.17409569,20761.0,20760.0,0.01870223]
[1673806213580,0.215222,20761.0,20760.0,0.01870223]
[1673806213867,0.481642,20763.0,20760.0,0.01870223]
[1673806214166,0.47720169,20762.0,20760.0,0.01870223]
[1673806214924,0.66792764,20761.0,20760.0,0.01870223]
[1673806215179,0.47720169,20761.0,20760.0,0.01870223]
[1673806215474,1.28009869,20761.0,20760.0,0.01870223]
[1673806218078,0.321225,20761.0,20760.0,0.24932455]
[1673806218272,0.4816,20765.0,20760.0,0.08515223]
[1673806218536,0.47720169,20764.0,20761.0,0.16417232]
[1673806219055,0.47720169,20764.0,20760.0,0.01870223]
[1673806219056,0.47720169,20763.0,20760.0,0.01870223]
[1673806219312,0.47720169,20762.0,20760.0,0.01870223]
[1673806219858,0.47720169,20761.0,20760.0,0.01870223]
[1673806220101,0.95887369,20761.0,20760.0,0.01870223]
[1673806220350,1.28009869,20761.0,20760.0,0.01870223]
[1673806221319,1.28009869,20761.0,20760.0,0.01858559]
[1673806222416,1.41899869,20761.0,20760.0,0.01858559]
[1673806223719,1.61899869,20761.0,20760.0,0.01858559]
[1673806224505,1.41899869,20761.0,20760.0,0.01858559]
[1673806224764,1.61899869,20761.0,20760.0,0.01858559]
[1673806225274,1.92539526,20761.0,20760.0,0.01858559]
[1673806225528,2.32652632,20761.0,20760.0,0.01858559]
[1673806225875,0.10681723,20759.0,20758.0,0.03103823]
[1673806226049,0.58401892,20759.0,20758.0,0.03103823]
[1673806226298,2.70950598,20759.0,20758.0,0.03103823]
[1673806226551,2.64552598,20759.0,20758.0,0.03103823]
[1673806226807,2.24439492,20759.0,20758.0,0.03103823]
[1673806228087,2.6829806,20759.0,20758.0,0.03103823]
[1673806228345,2.89338571,20759.0,20758.0,0.03103823]
[1673806228615,2.64552598,20759.0,20758.0,0.03103823]
[1673806228918,2.24439492,20759.0,20758.0,0.03103823]
[1673806230271,2.24439492,20759.0,20749.0,0.01990969]
[1673806230272,0.47720169,20752.0,20749.0,0.01990969]
[1673806230530,2.43479564,20752.0,20749.0,0.01990969]
[1673806231081,2.24406969,20752.0,20749.0,0.01990969]
[1673806231345,0.13103,20758.0,20751.0,0.08584383]
[1673806231636,0.47720169,20752.0,20751.0,0.18253615]
[1673806231900,0.850966,20758.0,20751.0,0.01836383]
[1673806231901,0.95898969,20756.0,20751.0,0.01836383]
[1673806232153,0.95898969,20756.0,20752.0,0.16417232]
[1673806232154,0.47720169,20755.0,20752.0,0.16417232]
[1673806232679,0.481756,20758.0,20751.0,0.31836383]
[1673806232955,0.47720169,20757.0,20752.0,0.16417232]
[1673806233211,0.47720169,20756.0,20752.0,0.16417232]
[1673806233471,0.66792764,20756.0,20751.0,0.51836383]
[1673806233927,0.66792764,20756.0,20751.0,0.68054615]
[1673806233930,0.66792764,20756.0,20751.0,0.48054615]
[1673806234195,0.47720169,20756.0,20752.0,0.16417232]
[1673806234727,0.47720169,20756.0,20753.0,0.2]
[1673806235005,0.03933723,20759.0,20753.0,0.981852]
[1673806235252,0.70726487,20759.0,20754.0,0.16417232]
[1673806235518,0.51653892,20759.0,20755.0,0.16417232]
[1673806236026,0.47720169,20758.0,20751.0,0.49827183]
[1673806236304,0.66792764,20757.0,20752.0,0.3]
[1673806236549,0.52107023,20759.0,20753.0,0.64602832]
[1673806236550,0.03933723,20759.0,20753.0,0.64602832]
[1673806236832,0.51653892,20759.0,20754.0,0.66417232]
[1673806237102,0.03933723,20759.0,20756.0,0.1389]
[1673806237356,0.03933723,20759.0,20757.0,0.96353]
[1673806237634,0.03933723,20759.0,20758.0,0.3]
[1673806237894,0.03933723,20759.0,20758.0,0.5]
[1673806238165,0.681491,20769.0,20758.0,1.70748091]
[1673806238425,0.00448267,20768.0,20761.0,0.1384]
[1673806238699,0.00448267,20768.0,20762.0,0.56357044]
[1673806238965,0.00448267,20768.0,20763.0,0.94579532]
[1673806239258,0.00448267,20768.0,20763.0,0.96946479]
[1673806239519,0.00448267,20768.0,20763.0,0.781623]
[1673806239781,0.00448267,20768.0,20763.0,0.911223]
[1673806240042,0.00448267,20768.0,20763.0,0.611223]
[1673806240602,0.00448267,20768.0,20762.0,1.2626]
[1673806240878,0.66792764,20767.0,20762.0,1.29687232]
[1673806241135,0.47720169,20766.0,20762.0,1.29687232]
[1673806241403,0.47720169,20767.0,20762.0,1.2622]
[1673806241876,0.47720169,20767.0,20762.0,0.1295]
[1673806242131,0.95873669,20767.0,20762.0,0.1295]
[1673806242392,0.95873669,20767.0,20762.0,0.4295]
[1673806242667,0.00448267,20768.0,20763.0,0.29327232]
[1673806242929,0.48168436,20768.0,20764.0,0.46417232]
[1673806243173,0.48168436,20768.0,20764.0,0.94576932]
[1673806244244,0.48168436,20768.0,20765.0,0.16417232]
[1673806244245,0.00448267,20768.0,20765.0,0.16417232]
[1673806244497,0.00472933,20771.0,20767.0,0.1299]
[1673806244775,0.00472933,20771.0,20768.0,0.77477732]
[1673806245034,0.00472933,20771.0,20770.0,0.1299]
[1673806245565,0.00472933,20771.0,20770.0,0.3299]
[1673806245827,0.04021458,20774.0,20771.0,0.2]
[1673806246103,0.04021458,20774.0,20773.0,0.1299]
[1673806246377,0.04021458,20774.0,20773.0,0.59407232]
[1673806246638,0.04021458,20774.0,20773.0,0.1299]
[1673806247393,0.04021458,20774.0,20770.0,0.1299]
[1673806247647,0.04021458,20774.0,20770.0,0.61136]
[1673806247648,0.23094053,20774.0,20770.0,0.61136]
[1673806247899,0.04021458,20774.0,20771.0,0.29317232]
[1673806248156,0.04021458,20774.0,20773.0,0.1299]
[1673806249201,0.23094053,20774.0,20772.0,0.611317]
[1673806249498,0.23094053,20774.0,20770.0,0.610546]
[1673806249703,0.19072595,20773.0,20770.0,0.610546]
[1673806250227,0.04021458,20774.0,20770.0,0.610546]
[1673806250510,0.04021458,20774.0,20770.0,0.16417232]
[1673806250771,0.23094053,20774.0,20769.0,0.781486]
[1673806251029,0.23094053,20774.0,20769.0,0.481486]
[1673806251318,0.19072595,20773.0,20768.0,0.610497]
[1673806251582,0.19072595,20773.0,20768.0,0.77466932]
[1673806251873,0.04021458,20774.0,20770.0,0.1291]
[1673806252156,0.04021458,20774.0,20773.0,0.1299]
[1673806252416,0.04021458,20774.0,20773.0,1.25686032]
[1673806252689,0.04021458,20774.0,20773.0,1.392688]
[1673806253205,0.04021458,20774.0,20773.0,1.092688]
[1673806253513,0.04021458,20774.0,20773.0,1.262788]
[1673806253778,0.00470093,20776.0,20773.0,2.72055869]
[1673806254047,0.00470093,20776.0,20774.0,0.86196627]
[1673806254321,0.00470093,20776.0,20775.0,1.444041]
[1673806254577,0.00470093,20776.0,20774.0,0.5]
[1673806254847,0.19542688,20776.0,20773.0,0.75119779]
[1673806255096,0.19542688,20776.0,20771.0,1.90630347]
[1673806255097,0.66792764,20775.0,20771.0,0.15306947]
[1673806255368,0.19072595,20774.0,20768.0,0.481497]
[1673806255625,0.19072595,20773.0,20768.0,0.481497]
[1673806255887,0.19072595,20772.0,20767.0,1.646029]
[1673806256138,0.19072595,20771.0,20767.0,1.646029]
[1673806256667,0.19072595,20771.0,20767.0,0.481529]
[1673806256918,0.19072595,20771.0,20766.0,0.481543]
[1673806257499,0.19072595,20771.0,20766.0,0.64571532]
[1673806257687,0.19072595,20771.0,20766.0,0.84571532]
[1673806257951,0.19072595,20771.0,20766.0,0.64571532]
[1673806258192,0.19072595,20771.0,20767.0,0.3]
[1673806258451,0.95857669,20774.0,20767.0,0.16417232]
[1673806258714,0.47720169,20770.0,20767.0,0.16417232]
[1673806258956,0.47720169,20769.0,20764.0,0.1287]
[1673806259215,0.47720169,20769.0,20763.0,0.481605]
[1673806259216,0.19072595,20768.0,20763.0,0.481605]
[1673806259472,0.19072595,20767.0,20763.0,0.481605]
[1673806259724,0.19072595,20766.0,20763.0,0.481605]
[1673806260521,0.47720169,20769.0,20763.0,0.481605]
[1673806260781,0.66792764,20769.0,20764.0,0.16417232]
[1673806261044,0.481429,20772.0,20765.0,0.16417232]
[1673806261313,0.47720169,20772.0,20769.0,0.1299]
[1673806261600,0.47720169,20772.0,20770.0,0.16417232]
[1673806262374,0.47720169,20772.0,20769.0,0.1299]
[1673806263442,0.47720169,20772.0,20768.0,0.610906]
[1673806263694,0.48136,20775.0,20768.0,0.610906]
[1673806263958,0.47720169,20774.0,20769.0,0.59407232]
[1673806264216,0.66792764,20774.0,20769.0,0.77554232]
[1673806264503,0.66792764,20774.0,20768.0,0.610706]
[1673806264734,0.66792764,20774.0,20769.0,0.481484]
[1673806265503,0.66792764,20774.0,20769.0,0.64565632]
[1673806265756,0.66792764,20774.0,20770.0,0.3]
[1673806266011,0.48604793,20776.0,20771.0,0.481438]
[1673806266012,0.00470093,20776.0,20771.0,0.481438]
[1673806266267,0.48190262,20776.0,20772.0,0.16417232]
[1673806266568,0.47720169,20775.0,20772.0,0.16417232]
[1673806266785,1.002595,20774.0,20768.0,1.14700314]
[1673806267047,0.802595,20774.0,20768.0,0.6113]
[1673806267297,0.66792764,20773.0,20767.0,0.481511]
[1673806267561,0.99336995,20772.0,20766.0,0.963088]
[1673806267845,0.95860269,20773.0,20767.0,0.481518]
[1673806267846,0.19072595,20771.0,20767.0,0.481518]
[1673806268071,0.481363,20775.0,20769.0,0.1298]
[1673806268375,0.48604193,20776.0,20770.0,1.12707732]
[1673806268889,0.96324362,20776.0,20771.0,0.16417232]
[1673806269159,0.66792764,20775.0,20770.0,0.962905]
[1673806269415,2.43328964,20774.0,20766.0,0.481535]
[1673806269673,0.88314964,20773.0,20766.0,0.64570732]
[1673806269927,1.47057764,20772.0,20766.0,0.64570732]
[1673806270190,0.19072595,20771.0,20766.0,0.481535]
[1673806270456,0.19072595,20770.0,20766.0,0.481535]
[1673806271292,0.481373,20774.0,20767.0,0.16417232]
[1673806271553,0.47720169,20774.0,20769.0,0.61087]
[1673806271812,0.48604093,20776.0,20770.0,0.16417232]
[1673806272066,0.48604093,20776.0,20771.0,0.16417232]
[1673806272067,0.47720169,20775.0,20771.0,0.16417232]
[1673806272616,0.95856669,20775.0,20771.0,0.16417232]
[1673806272887,0.95856669,20775.0,20769.0,0.61087]
[1673806273417,0.19072595,20774.0,20769.0,0.77504232]
[1673806273420,0.66792764,20774.0,20767.0,0.02365583]
[1673806273675,2.56326764,20773.0,20767.0,0.16417232]
[1673806273935,0.215222,20772.0,20766.0,0.481555]
[1673806274191,0.481419,20772.0,20766.0,0.481555]
[1673806274703,0.19072595,20771.0,20766.0,0.64572732]
[1673806274960,0.19072595,20770.0,20766.0,0.481555]
[1673806275725,0.481419,20772.0,20766.0,0.64583207]
[1673806276009,0.67214495,20772.0,20770.0,0.010401]
[1673806276274,0.481419,20772.0,20770.0,0.17467807]